bitfinex/quotes_ETHUSD_20230105
["timestamp","ask_amount","ask_price","bid_price","bid_amount"]
[1672903214469,6.49037236,1250.8,1250.7,0.0997672]
[1672903214687,7.15218316,1250.8,1250.7,0.0997672]
[1672903214867,15.14706316,1250.8,1250.7,0.0997672]
[1672903217302,3.65218316,1250.8,1250.7,0.0997672]
[1672903217517,3.58618316,1250.8,1250.7,0.0997672]
[1672903218441,3.63618316,1250.8,1250.7,0.0997672]
[1672903218778,3.58618316,1250.8,1250.7,0.0997672]
[1672903222003,7.08618316,1250.8,1250.7,0.0997672]
[1672903222218,7.15218316,1250.8,1250.7,0.0997672]
[1672903222369,3.65218316,1250.8,1250.7,0.0997672]
[1672903222714,3.58618316,1250.8,1250.7,0.0997672]
[1672903225326,13.69193096,1250.9,1250.7,0.0997672]
[1672903225583,18.69987337,1250.9,1250.7,0.0997672]
[1672903225797,3.58618316,1250.8,1250.7,0.0997672]
[1672903225942,7.08618316,1250.8,1250.7,0.0997672]
[1672903226152,7.15218316,1250.8,1250.7,0.0997672]
[1672903227305,3.65218316,1250.8,1250.7,0.0997672]
[1672903227517,3.58618316,1250.8,1250.7,0.0997672]
[1672903229506,4.65887725,1250.8,1250.7,0.0997672]
[1672903233983,3.58618316,1250.8,1250.7,0.0997672]
[1672903234294,3.58618316,1250.8,1250.7,8.0952872]
[1672903234506,3.58618316,1250.8,1250.7,8.16046783]
[1672903236261,13.69193096,1250.9,1250.7,8.16046783]
[1672903237093,13.69193096,1250.9,1250.7,0.16494783]
[1672903237307,3.58618316,1250.8,1250.7,0.0997672]
[1672903237832,3.58618316,1250.8,1250.7,0.09689891]
[1672903238462,14.2895609,1250.9,1250.7,0.09689891]
[1672903238463,21.68622096,1250.9,1250.7,0.09689891]
[1672903239600,2.99197079,1250.8,1250.7,0.09689891]
[1672903240093,21.68622096,1250.9,1250.7,0.09689891]
[1672903240628,2.99219797,1250.8,1250.7,0.09689891]
[1672903245102,5.38640728,1250.8,1250.7,16.08793891]
[1672903245360,5.45240728,1250.8,1250.7,27.38309459]
[1672903245749,2.46020931,1250.8,1250.7,27.38309459]
[1672903246113,1.79531596,1250.8,1250.7,27.38309459]
[1672903246323,2.99229965,1250.8,1250.7,27.86165384]
[1672903246472,2.99229965,1250.8,1250.7,30.86165384]
[1672903246677,2.99229965,1250.8,1250.7,34.85080335]
[1672903247433,1.79531596,1250.8,1250.7,34.85080335]
[1672903247646,4.18952527,1250.8,1250.7,34.85080335]
[1672903247857,2.99269505,1250.8,1250.7,34.85080335]
[1672903248911,2.99279672,1250.8,1250.7,34.85080335]
[1672903249939,1.19748076,1250.8,1250.7,34.85080335]
[1672903250463,2.99279672,1250.8,1250.7,34.85080335]
[1672903250690,1.19710742,1250.8,1250.7,34.85080335]
[1672903250931,4.03726376,1250.9,1250.7,34.85080335]
[1672903251254,3.97126376,1250.9,1250.8,26.98464]
[1672903251408,5.16831396,1250.9,1250.8,31.33426097]
[1672903251620,5.23431396,1250.9,1250.8,31.81282022]
[1672903252079,4.03726376,1250.9,1250.8,31.81282022]
[1672903252322,3.97126376,1250.9,1250.8,31.81282022]
[1672903252531,6.36547307,1250.9,1250.8,23.81794022]
[1672903252703,6.43147307,1250.9,1250.8,15.82306022]
[1672903253271,6.43147307,1250.9,1250.8,23.81794022]
[1672903254830,6.43147307,1250.9,1250.8,31.81282022]
[1672903255020,6.43147307,1250.9,1250.8,23.81794022]
[1672903255581,4.03726376,1250.9,1250.8,23.81794022]
[1672903255728,3.97126376,1250.9,1250.8,23.81794022]
[1672903255942,3.97126376,1250.9,1250.8,31.81282022]
[1672903257153,6.36547307,1250.9,1250.8,31.81282022]
[1672903257365,6.43147307,1250.9,1250.8,23.81794022]
[1672903257750,6.43147307,1250.9,1250.8,23.81594022]
[1672903257947,6.43147307,1250.9,1250.8,23.81794022]
[1672903258368,4.03726376,1250.9,1250.8,31.81282022]
[1672903258611,3.97126376,1250.9,1250.8,31.81282022]
[1672903259208,6.36547307,1250.9,1250.8,31.81282022]
[1672903259456,4.03726376,1250.9,1250.8,31.81282022]
[1672903259626,3.97126376,1250.9,1250.8,31.81282022]
[1672903259846,3.97126376,1250.9,1250.8,35.80196973]
[1672903260954,5.16680019,1250.9,1250.8,35.80196973]
[1672903261258,4.03726376,1250.9,1250.8,35.80196973]
[1672903261465,3.97126376,1250.9,1250.8,35.80196973]
[1672903262504,6.36547307,1250.9,1250.8,35.80196973]
[1672903262712,6.43147307,1250.9,1250.8,35.80196973]
[1672903265870,6.43147307,1250.9,1250.8,27.80708973]
[1672903266081,6.43147307,1250.9,1250.8,24.32853048]
[1672903266295,6.43147307,1250.9,1250.8,20.33938097]
[1672903266458,4.63615711,1250.9,1250.8,0.06518063]
[1672903266676,4.57015711,1250.9,1250.7,19.38673459]
[1672903266884,1.19563411,1250.8,1250.7,24.14779954]
[1672903267251,2.39420931,1250.8,1250.7,8.15705954]
[1672903267683,4.18757049,1250.8,1250.7,8.15705954]
[1672903272031,4.18786243,1250.8,1250.7,8.15705954]
[1672903272225,2.39420931,1250.8,1250.7,8.15705954]
[1672903272549,5.38640728,1250.8,1250.7,8.15705954]
[1672903272711,5.45240728,1250.8,1250.7,8.15705954]
[1672903273347,2.46020931,1250.8,1250.7,8.15705954]
[1672903273558,2.39420931,1250.8,1250.7,8.15705954]
[1672903273769,5.38640728,1250.8,1250.7,8.15705954]
[1672903274016,5.45240728,1250.8,1250.7,8.15705954]
[1672903280540,5.45240728,1250.8,1250.7,16.15257954]
[1672903281909,5.45240728,1250.8,1250.7,24.14809954]
[1672903282102,5.45240728,1250.8,1250.7,27.38246059]
[1672903282498,2.46020931,1250.8,1250.7,27.38246059]
[1672903282715,2.39420931,1250.8,1250.7,27.38246059]
[1672903285064,4.19155039,1250.8,1250.7,27.38246059]
[1672903285592,2.39420931,1250.8,1250.7,27.38246059]
[1672903285987,2.39420931,1250.8,1250.7,31.3716101]
[1672903286180,4.19144988,1250.8,1250.7,31.3716101]
[1672903288010,4.19144988,1250.8,1250.7,31.36893142]
[1672903290902,1.79724057,1250.8,1250.7,31.36893142]
[1672903291112,4.19144988,1250.8,1250.7,31.36893142]
[1672903297058,1.79724057,1250.8,1250.7,31.36893142]
[1672903298935,4.19144988,1250.8,1250.7,31.36893142]
[1672903299337,2.39420931,1250.8,1250.7,31.36893142]
[1672903299518,2.39420931,1250.8,1250.7,28.13457037]
[1672903299731,5.38640728,1250.8,1250.7,28.13457037]
[1672903299988,5.45240728,1250.8,1250.7,28.13457037]
[1672903300413,5.45240728,1250.8,1250.7,20.13905037]
[1672903300987,5.45240728,1250.8,1250.7,28.13457037]
[1672903301258,5.45240728,1250.8,1250.7,16.14990086]
[1672903302150,5.45240728,1250.8,1250.7,24.14542086]
[1672903302674,2.46020931,1250.8,1250.7,24.14542086]
[1672903302892,4.19255282,1250.8,1250.7,27.37948304]
[1672903303852,4.19255282,1250.8,1250.7,24.14542086]
[1672903304066,5.38640728,1250.8,1250.7,16.14990086]
[1672903304275,5.45240728,1250.8,1250.7,24.14542086]
[1672903304488,5.45240728,1250.8,1250.7,16.14990086]
[1672903305197,5.45240728,1250.8,1250.7,24.14542086]
[1672903305331,2.46020931,1250.8,1250.7,24.14542086]
[1672903305544,2.39420931,1250.8,1250.7,24.14542086]
[1672903306270,5.38640728,1250.8,1250.7,24.14542086]
[1672903306516,5.45240728,1250.8,1250.7,16.14990086]
[1672903307269,5.45240728,1250.8,1250.7,24.14542086]
[1672903307490,5.45240728,1250.8,1250.7,16.14990086]
[1672903308530,5.45240728,1250.8,1250.7,24.14542086]
[1672903308955,5.45240728,1250.8,1250.7,16.14990086]
[1672903309691,5.45240728,1250.8,1250.7,16.14650307]
[1672903311207,5.45240728,1250.8,1250.7,0.15600307]
[1672903311208,4.17965179,1250.8,1250.7,0.15600307]
[1672903311423,7.91203803,1250.8,1250.7,8.08634244]
[1672903311668,8.27363698,1250.8,1250.7,0.15600307]
[1672903311841,8.27363698,1250.8,1250.7,0.09082244]
[1672903313649,4.77363698,1250.8,1250.7,0.09082244]
[1672903313861,1.12145382,1250.8,1250.7,8.08634244]
[1672903314071,4.70763698,1250.8,1250.7,8.15152307]
[1672903314340,1.12145382,1250.8,1250.7,8.15152307]
[1672903318660,1.12145382,1250.8,1250.7,0.15600307]
[1672903318855,1.12145382,1250.8,1250.7,0.09082244]
[1672903319072,4.70763698,1250.8,1250.7,0.09082244]
[1672903320466,5.30526692,1250.8,1250.7,0.09082244]
[1672903320776,4.78245448,1250.8,1250.7,0.09082244]
[1672903320963,4.71645448,1250.8,1250.7,0.09082244]
[1672903326686,12.71133448,1250.8,1250.7,0.09082244]
[1672903326814,4.78245448,1250.8,1250.7,0.09082244]
[1672903327023,4.71645448,1250.8,1250.7,0.09082244]
[1672903329405,1.12145382,1250.8,1250.7,0.09082244]
[1672903330265,4.71645448,1250.8,1250.7,0.09082244]
[1672903330916,38.34948006,1250.8,1250.7,0.09082244]
[1672903331130,42.59929316,1250.8,1250.7,0.09082244]
[1672903331686,46.81844267,1250.8,1250.7,0.09082244]
[1672903332107,49.81844267,1250.8,1250.7,0.09082244]
[1672903332418,51.73444267,1250.8,1250.7,0.06743722]
[1672903332570,52.21300192,1250.8,1250.7,0.06743722]
[1672903333150,48.02918882,1250.8,1250.7,0.06743722]
[1672903333322,52.2187733,1250.8,1250.7,0.06743722]
[1672903333742,48.02918882,1250.8,1250.7,0.06743722]
[1672903333961,52.21917108,1250.8,1250.7,0.06743722]
[1672903334143,48.02918882,1250.8,1250.7,0.06743722]
[1672903334355,52.21927838,1250.8,1250.7,0.06743722]
[1672903334822,57.00627838,1250.8,1250.7,0.06743722]
[1672903336876,58.76864664,1250.8,1250.7,0.06743722]
[1672903339334,58.76864664,1250.8,1250.7,0.05008821]
[1672903341778,52.06164664,1250.8,1250.7,0.05008821]
[1672903341932,43.58820739,1250.8,1250.7,0.05008821]
[1672903342135,31.40323783,1250.8,1250.7,0.05008821]
[1672903342772,39.39811783,1250.8,1250.7,0.05008821]
[1672903342990,31.40323783,1250.8,1250.7,0.05008821]
[1672903343315,39.39811783,1250.8,1250.7,0.05008821]
[1672903343740,42.9866821,1250.8,1250.7,0.05008821]
[1672903344091,42.98667322,1250.8,1250.7,0.05008821]
[1672903344625,34.99179322,1250.8,1250.7,0.05008821]
[1672903346395,31.40323783,1250.8,1250.7,0.05008821]
[1672903346799,43.58820739,1250.8,1250.7,0.05008821]
[1672903346991,53.50808739,1250.8,1250.7,0.03720677]
[1672903347990,49.79655708,1250.8,1250.7,0.03720677]
[1672903349398,53.9838457,1250.8,1250.7,0.03720677]
[1672903349717,53.50528645,1250.8,1250.7,0.03720677]
[1672903351319,51.58028645,1250.8,1250.7,0.03720677]
[1672903353432,43.58540645,1250.8,1250.7,0.03720677]
[1672903354931,35.59052645,1250.8,1250.7,0.03720677]
[1672903355311,27.59564645,1250.8,1250.7,0.03720677]
[1672903355729,35.59052645,1250.8,1250.7,0.03720677]
[1672903355979,43.58540645,1250.8,1250.7,0.03720677]
[1672903356170,35.59052645,1250.8,1250.7,0.03720677]
[1672903356389,43.58540645,1250.8,1250.7,0.03720677]
[1672903356601,37.87102021,1250.8,1250.7,0.03720677]
[1672903356773,33.67452645,1250.8,1250.7,0.03720677]
[1672903357296,41.66940645,1250.8,1250.7,0.03720677]
[1672903358631,49.66428645,1250.8,1250.7,0.03720677]
[1672903358779,49.66428645,1250.8,1250.7,0.02753566]
[1672903359833,41.66940645,1250.8,1250.7,0.02753566]
[1672903361197,36.66940645,1250.8,1250.7,0.02753566]
[1672903362429,41.66940645,1250.8,1250.7,0.02753566]
[1672903366244,37.48211783,1250.8,1250.7,0.02753566]
[1672903366615,41.67588943,1250.8,1250.7,0.02753566]
[1672903366996,49.67076943,1250.8,1250.7,0.02753566]
[1672903367190,45.47699783,1250.8,1250.7,0.02753566]
[1672903367403,41.67455399,1250.8,1250.7,0.02753566]
[1672903368068,37.48211783,1250.8,1250.7,0.02753566]
[1672903368273,42.42424705,1250.8,1250.7,0.02753566]
[1672903368494,37.42424705,1250.8,1250.7,0.02753566]
[1672903368695,45.41912705,1250.8,1250.7,0.02753566]
[1672903368884,45.41912705,1250.8,1250.7,0.02038095]
[1672903369251,50.41912705,1250.8,1250.7,0.02038095]
[1672903369814,42.42424705,1250.8,1250.7,0.02038095]
[1672903370027,26.43448705,1250.8,1250.7,0.02038095]
[1672903370293,22.03610081,1250.8,1250.7,0.02038095]
[1672903370616,25.83448705,1250.8,1250.7,0.02038095]
[1672903375198,20.83448705,1250.8,1250.7,0.02038095]
[1672903376252,25.83448705,1250.8,1250.7,0.02038095]
[1672903382220,20.83448705,1250.8,1250.7,0.02038095]
[1672903383282,25.83448705,1250.8,1250.7,0.02038095]
[1672903384007,6.0869149,1250.7,1250.6,0.19963091]
[1672903384221,37.68105789,1250.7,1250.6,0.19963091]
[1672903384475,9.781,1250.6,1250.5,0.17049725]
[1672903384637,4.787,1250.4,1250.2,0.96498777]
[1672903384847,13.70438489,1250.3,1250.2,0.96498777]
[1672903385057,14.47894414,1250.3,1250.2,0.96498777]
[1672903385316,15.01123538,1250.3,1250.2,0.96498777]
[1672903385530,12.84976421,1250.3,1250.2,0.96498777]
[1672903385905,12.84976421,1250.3,1250.2,0.81498777]
[1672903386948,13.07976421,1250.3,1250.2,0.81498777]
[1672903387639,9.48973483,1250.3,1250.2,0.81498777]
[1672903387851,12.24950014,1250.3,1250.2,0.91759589]
[1672903388007,9.25973483,1250.3,1250.2,0.91759589]
[1672903388421,9.25973483,1250.3,1250.2,0.81498777]
[1672903389068,12.2491429,1250.3,1250.2,0.81498777]
[1672903391204,12.24682671,1250.3,1250.2,0.81498777]
[1672903395295,14.63504924,1250.3,1250.2,0.81498777]
[1672903397628,11.64795736,1250.3,1250.2,0.81498777]
[1672903397777,14.63504924,1250.3,1250.2,0.91759589]
[1672903398758,14.63504924,1250.3,1250.2,0.81498777]
[1672903399628,12.24682671,1250.3,1250.2,0.81498777]
[1672903399773,14.63440492,1250.3,1250.2,0.81498777]
[1672903400512,9.25973483,1250.3,1250.2,0.81498777]
[1672903401721,12.24391397,1250.3,1250.2,0.81498777]
[1672903403296,13.82730831,1250.3,1250.2,0.81498777]
[1672903406247,21.61169125,1250.3,1250.2,0.81498777]
[1672903406460,26.04784149,1250.3,1250.2,0.81498777]
[1672903406837,27.97284149,1250.3,1250.2,0.81498777]
[1672903407169,24.17760806,1250.3,1250.2,0.81498777]
[1672903408199,27.96727269,1250.3,1250.2,0.81498777]
[1672903408790,27.95675003,1250.3,1250.2,0.59941949]
[1672903409354,24.1670854,1250.3,1250.2,0.59941949]
[1672903410525,27.95670373,1250.3,1250.2,0.59941949]
[1672903410780,32.74370373,1250.3,1250.2,0.59941949]
[1672903413192,12.24277857,1250.3,1250.2,0.59941949]
[1672903414604,8.04904374,1250.3,1250.2,0.59941949]
[1672903414819,10.43616177,1250.3,1250.2,0.59941949]
[1672903415464,8.04904374,1250.3,1250.2,0.59941949]
[1672903416709,8.27904374,1250.3,1250.2,0.59941949]
[1672903416919,9.71581879,1250.3,1250.2,0.59941949]
[1672903417786,9.76581879,1250.3,1250.2,0.59941949]
[1672903418030,9.71581879,1250.3,1250.2,0.59941949]
[1672903418216,10.31228177,1250.3,1250.2,0.59941949]
[1672903420180,6.73277505,1250.3,1250.2,0.59941949]
[1672903420397,10.31228177,1250.3,1250.2,0.59941949]
[1672903422908,11.97650245,1250.3,1250.2,0.59941949]
[1672903423857,8.39699573,1250.3,1250.2,0.59941949]
[1672903424069,11.98664304,1250.3,1250.2,0.59941949]
[1672903424271,8.39699573,1250.3,1250.2,0.59941949]
[1672903424486,10.55027881,1250.3,1250.2,0.59941949]
[1672903424697,10.91852809,1250.3,1250.2,0.59941949]
[1672903424948,6.73022068,1250.3,1250.2,0.59941949]
[1672903425283,10.91852809,1250.3,1250.2,0.59941949]
[1672903425441,6.73022068,1250.3,1250.2,0.59941949]
[1672903425646,10.32022233,1250.3,1250.2,0.59941949]
[1672903426274,12.62030106,1250.3,1250.2,0.59941949]
[1672903428012,8.43199365,1250.3,1250.2,0.59941949]
[1672903428161,10.91852809,1250.3,1250.2,0.59941949]
[1672903428372,6.73022068,1250.3,1250.2,0.59941949]
[1672903430112,10.91852809,1250.3,1250.2,0.59941949]
[1672903430338,11.14852809,1250.3,1250.2,0.59941949]
[1672903431797,11.14852809,1250.3,1250.2,0.59703445]
[1672903432018,13.00970541,1250.3,1250.2,0.59703445]
[1672903433284,10.55102134,1250.3,1250.2,0.59703445]
[1672903433837,11.14852809,1250.3,1250.2,0.59703445]
[1672903434054,6.96022068,1250.3,1250.2,0.59703445]
[1672903434219,11.19852809,1250.3,1250.2,0.59703445]
[1672903434429,11.14852809,1250.3,1250.2,0.59703445]
[1672903434649,12.5143009,1250.3,1250.2,0.59703445]
[1672903437631,10.25099349,1250.3,1250.2,0.59703445]
[1672903437800,14.43951406,1250.3,1250.2,0.59703445]
[1672903438007,14.240143,1250.3,1250.2,0.59703445]
[1672903438202,17.240143,1250.3,1250.2,0.59703445]
[1672903438406,17.840443,1250.3,1250.2,0.59703445]
[1672903438853,22.79448815,1250.3,1250.2,0.59703445]
[1672903439907,22.79448815,1250.3,1250.2,0.4428307]
[1672903440888,26.58765382,1250.3,1250.2,0.4428307]
[1672903441154,22.79448815,1250.3,1250.2,0.4428307]
[1672903441472,26.58765382,1250.3,1250.2,0.4428307]
[1672903441781,34.7690221,1250.3,1250.2,0.4428307]
[1672903442395,28.82416792,1250.3,1250.2,0.4428307]
[1672903442611,34.7599782,1250.3,1250.2,0.4428307]
[1672903444034,28.82416792,1250.3,1250.2,0.4428307]
[1672903444264,33.76477681,1250.3,1250.2,0.4428307]
[1672903446933,27.05277681,1250.3,1250.2,0.3289988]
[1672903447081,26.57421756,1250.3,1250.2,0.3289988]
[1672903447958,31.36121756,1250.3,1250.2,0.3289988]
[1672903450720,31.83977681,1250.3,1250.2,0.3289988]
[1672903451574,33.76477681,1250.3,1250.2,0.0009988]
[1672903451786,39.70058709,1250.3,1250.2,0.0009988]
[1672903452416,48.11258709,1250.3,1250.2,0.0009988]
[1672903452569,50.02458709,1250.3,1250.2,0.0009988]
[1672903452783,8.287,1250.2,1250.1,0.2120929]
[1672903453048,38.14154561,1250.2,1250.1,0.2120929]
[1672903453258,38.14154561,1250.2,1250.0,0.24188617]
[1672903453259,3.712,1250.1,1250.0,0.24188617]
[1672903453480,40.20996506,1250.1,1250.0,0.24188617]
[1672903453681,40.75452431,1250.1,1250.0,0.24188617]
[1672903453834,45.75452431,1250.1,1250.0,0.05198303]
[1672903454043,48.94400751,1250.1,1250.0,0.05198303]
[1672903454254,34.60855945,1250.1,1250.0,0.05198303]
[1672903454470,37.61539085,1250.1,1250.0,0.05198303]
[1672903456038,32.68355945,1250.1,1250.0,0.05198303]
[1672903456321,31.84050737,1250.1,1250.0,0.05198303]
[1672903456474,31.24010737,1250.1,1250.0,0.05198303]
[1672903456689,31.2390653,1250.1,1250.0,0.05198303]
[1672903457043,29.32106532,1250.1,1250.0,0.05198303]
[1672903457828,29.55106532,1250.1,1250.0,0.05198303]
[1672903458281,34.33806532,1250.1,1250.0,0.05198303]
[1672903458504,34.93846532,1250.1,1250.0,0.05198303]
[1672903458944,31.15153988,1250.1,1250.0,0.05198303]
[1672903459153,30.67298063,1250.1,1250.0,0.05198303]
[1672903459315,26.49903271,1250.1,1250.0,0.05198303]
[1672903459959,29.86412405,1250.1,1250.0,0.05198303]
[1672903460169,26.36412405,1250.1,1250.0,0.05198303]
[1672903461468,26.36412405,1250.1,1250.0,0.03874588]
[1672903462105,30.74997626,1250.1,1250.0,0.03874588]
[1672903462485,30.74955729,1250.1,1250.0,0.03874588]
[1672903463359,26.57602834,1250.1,1250.0,0.03874588]
[1672903463627,31.50785974,1250.1,1250.0,0.03874588]
[1672903463758,33.42285974,1250.1,1250.0,0.03874588]
[1672903463982,53.30458759,1250.1,1250.0,0.00074588]
[1672903464199,16.699,1250.0,1249.9,0.21931555]
[1672903464540,50.91638613,1250.0,1249.9,0.21931555]
[1672903464687,51.39494538,1250.0,1249.9,0.21931555]
[1672903465593,55.56565177,1250.0,1249.9,0.21931555]
[1672903465738,55.56565941,1250.0,1249.9,0.21931555]
[1672903467466,55.56476703,1250.0,1249.9,0.21931555]
[1672903467685,47.15276703,1250.0,1249.9,0.21931555]
[1672903467892,47.15300845,1250.0,1249.9,0.21931555]
[1672903468064,47.18800845,1250.0,1249.9,0.21931555]
[1672903468430,47.18800845,1250.0,1249.9,0.09220268]
[1672903469529,56.356103,1250.0,1249.9,0.09220268]
[1672903470148,54.427103,1250.0,1249.9,0.09220268]
[1672903470834,70.337103,1250.0,1249.7,0.00176782]
[1672903470994,70.337103,1250.0,1249.6,1.01154282]
[1672903470995,27.86818657,1249.8,1249.6,1.01154282]
[1672903471235,25.39918598,1249.7,1249.6,1.01154282]
[1672903471583,28.04413147,1249.7,1249.6,1.01154282]
[1672903471738,20.07830876,1249.7,1249.6,1.01154282]
[1672903472110,23.65108369,1249.7,1249.6,1.01154282]
[1672903472264,23.65108369,1249.7,1249.6,0.00054282]
[1672903472265,27.81852016,1249.7,1249.6,0.00054282]
[1672903472474,26.29683235,1249.7,1249.6,0.00054282]
[1672903472791,25.69623235,1249.7,1249.6,0.00054282]
[1672903474163,23.76923235,1249.7,1249.6,0.00054282]
[1672903474531,17.07214951,1249.7,1249.6,0.00054282]
[1672903474675,20.04849438,1249.7,1249.6,0.00054282]
[1672903475412,9.2333195,1249.7,1249.6,1.29554282]
[1672903475623,6.85241694,1249.7,1249.6,1.29554282]
[1672903475943,8.0433716,1249.7,1249.6,1.91497888]
[1672903476149,6.25695466,1249.7,1249.6,2.39353813]
[1672903476359,4.16769968,1249.8,1249.7,3.5]
[1672903476731,4.23369968,1249.9,1249.7,1.06791306]
[1672903476926,4.16769968,1249.9,1249.7,0.47855925]
[1672903477465,1.78641694,1249.8,1249.7,0.47855925]
[1672903477676,1.78641694,1249.8,1249.6,1.91497888]
[1672903478571,1.78641694,1249.8,1249.6,2.39353813]
[1672903480058,4.23369968,1249.9,1249.6,6.38268764]
[1672903480327,1.78641694,1249.9,1249.7,3.5]
[1672903480499,1.78641694,1249.9,1249.7,4.49478683]
[1672903481316,4.16769968,1249.9,1249.7,0.99478683]
[1672903481527,1.78641694,1249.8,1249.6,2.39353813]
[1672903482199,4.23369968,1249.9,1249.6,2.39353813]
[1672903482549,1.78641694,1249.8,1249.6,1.91497888]
[1672903483631,4.16769968,1249.8,1249.6,1.91497888]
[1672903483833,4.16969968,1249.8,1249.6,1.91497888]
[1672903484089,4.16769968,1249.8,1249.6,1.91497888]
[1672903484678,1.78641694,1249.8,1249.6,1.91497888]
[1672903485762,4.23369968,1249.9,1249.6,8.62215888]
[1672903485995,4.23369968,1249.9,1249.6,0.68515951]
[1672903485996,4.16769968,1249.9,1249.6,0.68515951]
[1672903486207,4.16769968,1249.9,1249.6,0.61997888]
[1672903486380,1.19253173,1249.8,1249.6,0.61997888]
[1672903487853,2.97894867,1249.8,1249.6,0.61997888]
[1672903488063,1.19253173,1249.8,1249.6,0.61997888]
[1672903488294,2.97894867,1249.8,1249.6,0.61997888]
[1672903488469,1.19253173,1249.8,1249.6,8.62249888]
[1672903488679,1.19253173,1249.8,1249.6,5.15286827]
[1672903489821,2.97894867,1249.8,1249.6,0.68515951]
[1672903490050,2.97894867,1249.8,1249.6,0.61997888]
[1672903492508,2.97894867,1249.8,1249.6,0.00054282]
[1672903492509,4.69253173,1249.7,1249.6,0.00054282]
[1672903492680,6.47894867,1249.7,1249.6,0.00054282]
[1672903492887,1.25853173,1249.7,1249.6,0.00054282]
[1672903493115,1.19253173,1249.7,1249.6,0.00054282]
[1672903493522,2.97894867,1249.7,1249.6,0.00054282]
[1672903493754,1.19253173,1249.7,1249.6,0.00054282]
[1672903494084,2.97894867,1249.7,1249.6,0.00054282]
[1672903494973,1.19253173,1249.7,1249.6,0.00054282]
[1672903495224,2.97894867,1249.7,1249.6,0.00054282]
[1672903497197,2.98094867,1249.7,1249.6,0.00054282]
[1672903497383,1.19253173,1249.7,1249.6,0.00054282]
[1672903498371,0.00157579,1249.6,1249.5,12.48847917]
[1672903498585,0.00157579,1249.6,1249.5,19.97818519]
[1672903498966,0.00157579,1249.6,1249.5,27.98138519]
[1672903499967,0.00157579,1249.6,1249.5,43.98778519]
[1672903503697,0.00157579,1249.6,1249.5,35.98458519]
[1672903506365,2.97894867,1249.8,1249.6,0.00204841]
[1672903506931,2.97894867,1249.8,1249.6,24.00898841]
[1672903507146,2.97894867,1249.8,1249.6,27.42177172]
[1672903510400,1.19253173,1249.7,1249.6,27.42177172]
[1672903512190,2.97894867,1249.7,1249.6,27.42177172]
[1672903512814,1.19253173,1249.7,1249.6,35.42433172]
[1672903513184,2.97894867,1249.7,1249.6,35.42433172]
[1672903513400,1.19253173,1249.7,1249.6,35.42433172]
[1672903514003,1.19253173,1249.7,1249.6,27.42177172]
[1672903514126,1.78641694,1249.7,1249.6,27.42177172]
[1672903514980,2.98226464,1249.7,1249.6,27.42177172]
[1672903515624,2.38128274,1249.7,1249.6,0.06722904]
[1672903515819,2.97634487,1249.7,1249.6,0.00204841]
[1672903516032,14.47826487,1249.7,1249.6,0.00204841]
[1672903516292,9.99261563,1249.7,1249.6,0.00204841]
[1672903516881,10.0056012,1249.7,1249.6,0.00204841]
[1672903517091,6.5056012,1249.7,1249.6,0.00204841]
[1672903517503,3.05533044,1249.7,1249.6,0.00204841]
[1672903517711,2.98933044,1249.7,1249.6,0.00204841]
[1672903518136,5.38080434,1249.7,1249.6,16.00716841]
[1672903518345,5.44680434,1249.7,1249.6,24.07490904]
[1672903519298,2.4574739,1249.7,1249.6,27.3747438]
[1672903519504,2.3914739,1249.7,1249.6,27.3747438]
[1672903519715,2.3914739,1249.7,1249.6,19.3721838]
[1672903520971,2.3914739,1249.7,1249.6,27.3747438]
[1672903521177,2.3914739,1249.7,1249.6,19.3721838]
[1672903521387,4.1852209,1249.7,1249.6,27.3747438]
[1672903521970,2.3914739,1249.7,1249.6,27.3747438]
[1672903522502,4.18522321,1249.7,1249.6,19.3721838]
[1672903522672,4.18522321,1249.7,1249.6,27.3747438]
[1672903523080,4.18522321,1249.7,1249.6,19.3721838]
[1672903523288,2.98963725,1249.7,1249.6,27.3747438]
[1672903524330,4.18522321,1249.7,1249.6,27.3747438]
[1672903524803,1.79374931,1249.7,1249.6,27.3747438]
[1672903527275,2.9897177,1249.7,1249.6,27.3747438]
[1672903530311,1.79374931,1249.7,1249.6,27.3747438]
[1672903530627,1.79374931,1249.7,1249.6,27.37272275]
[1672903530628,4.18522321,1249.7,1249.6,27.37272275]
[1672903531463,1.79374931,1249.7,1249.6,27.37272275]
[1672903532041,2.98960457,1249.7,1249.6,27.37272275]
[1672903532463,2.98957867,1249.7,1249.6,27.37272275]
[1672903533211,2.98959426,1249.7,1249.6,27.37272275]
[1672903533425,1.79374931,1249.7,1249.6,27.37272275]
[1672903533749,2.98959486,1249.7,1249.6,27.37272275]
[1672903533968,1.79374931,1249.7,1249.6,27.37272275]
[1672903536200,2.98962769,1249.7,1249.6,27.37272275]
[1672903536518,2.98962887,1249.7,1249.6,27.37272275]
[1672903538043,2.98962887,1249.7,1249.6,31.36187226]
[1672903540351,4.18522321,1249.7,1249.6,27.37272275]
[1672903541666,4.18722321,1249.7,1249.6,27.37072275]
[1672903541845,4.18522321,1249.7,1249.6,27.37272275]
[1672903543123,4.08522321,1249.7,1249.6,27.37272275]
[1672903544617,1.69374931,1249.7,1249.6,27.37272275]
[1672903544784,1.69574931,1249.7,1249.6,27.37072275]
[1672903544999,1.69374931,1249.7,1249.6,27.37272275]
[1672903547338,2.88961393,1249.7,1249.6,27.37272275]
[1672903550123,2.88967039,1249.7,1249.6,27.37272275]
[1672903550332,1.69374931,1249.7,1249.6,27.37272275]
[1672903550670,2.88970374,1249.7,1249.6,27.37272275]
[1672903551644,2.88655271,1249.7,1249.6,27.37272275]
[1672903554386,1.69059828,1249.7,1249.6,27.37272275]
[1672903556332,5.38080434,1249.7,1249.6,19.37016275]
[1672903556486,5.44680434,1249.7,1249.6,24.07288799]
[1672903556697,2.4574739,1249.7,1249.6,16.07032799]
[1672903556907,2.3914739,1249.7,1249.6,16.07032799]
[1672903557156,2.3914739,1249.7,1249.6,24.07288799]
[1672903558501,5.38080434,1249.7,1249.6,16.07032799]
[1672903558865,2.4574739,1249.7,1249.6,24.07288799]
[1672903559167,2.3914739,1249.7,1249.6,24.07288799]
[1672903561220,5.38080434,1249.7,1249.6,24.07288799]
[1672903561430,5.44680434,1249.7,1249.6,24.07288799]
[1672903563857,5.44680434,1249.7,1249.6,16.07032799]
[1672903564857,5.44680434,1249.7,1249.6,24.07288799]
[1672903565290,2.4574739,1249.7,1249.6,24.07288799]
[1672903565435,2.3914739,1249.7,1249.6,24.07288799]
[1672903566518,5.38080434,1249.7,1249.6,24.07288799]
[1672903566722,5.44680434,1249.7,1249.6,16.07032799]
[1672903567276,5.44680434,1249.7,1249.6,24.07288799]
[1672903568317,5.44680434,1249.7,1249.6,0.06520799]
[1672903568588,5.44680434,1249.7,1249.6,16.00514736]
[1672903568808,5.44680434,1249.7,1249.6,16.07032799]
[1672903568809,3.05533044,1249.7,1249.6,16.07032799]
[1672903569128,5.38218639,1249.7,1249.6,16.07032799]
[1672903569335,5.44818639,1249.7,1249.6,16.07032799]
[1672903569568,5.44818639,1249.7,1249.6,24.07288799]
[1672903570423,5.44770714,1249.7,1249.6,24.07288799]
[1672903570843,3.05533044,1249.7,1249.6,24.07288799]
[1672903571006,2.98933044,1249.7,1249.6,16.07032799]
[1672903571217,5.38171587,1249.7,1249.6,16.07032799]